Cogmind - Beta 14 @@@ ROGUE MODE // 2024.09.06 @ 22:37:25 Player: Wotf Result: Destroyed by H8-RBE(R) with Subdweller Beam Cannon Performance ------------- Evolutions (0) 0 Regions Visited (2) 400 Robots Destroyed (36) 180 Value Destroyed (926) 926 Prototype IDs (14) 280 Alien Tech Used (0) 0 Bonus (0) 0 TOTAL SCORE: 1786 Bonus ------- None Cogmind --------- Core Integrity 0/250 Matter 260/300 Energy 125/125 System Corruption 0% Temperature Cool (9) Movement Rolling (160) Ox5 Location -10/Subcaves Parts ------- > --- POWER (1) -------- Light Ion Engine > --- PROPULSION (2) --- Light Treads Subdweller Monowheel > --- UTILITY (2) ------ Huge Storage Unit Medium Armor Plating > --- WEAPON (2) ------- Battle Cannon Subdweller Shrapnel Launcher > --- INVENTORY (25) --- Subdweller Power Source Spiked Treads Heat Sink High-capacity Battery (250) Small Matter Pod (50) Large Matter Pod (150) Light Armor Plating Medium Armor Plating Medium Armor Plating Medium Armor Plating Makeshift Thermal Plating Tractor Beam Rainbow Chip Beam Cannon Beam Cannon Beam Cannon Assault Rifle Subdweller Machine Gun Barrage Gun Mini Grenade Launcher Mini Grenade Launcher Mini Grenade Launcher Subdweller Shrapnel Launcher Subdweller Shrapnel Launcher Peak State ------------ > --- POWER ------------ Light Ion Engine > --- PROPULSION ------- Light Treads Subdweller Monowheel > --- UTILITY ---------- Huge Storage Unit Medium Armor Plating > --- WEAPON ----------- Battle Cannon Subdweller Shrapnel Launcher > --- INVENTORY -------- Subdweller Power Source Spiked Treads Heat Sink High-capacity Battery Small Matter Pod Large Matter Pod Light Armor Plating Medium Armor Plating Medium Armor Plating Medium Armor Plating Makeshift Thermal Plating Tractor Beam Rainbow Chip Beam Cannon Beam Cannon Beam Cannon Assault Rifle Subdweller Machine Gun Barrage Gun Mini Grenade Launcher Mini Grenade Launcher Mini Grenade Launcher Subdweller Shrapnel Launcher Subdweller Shrapnel Launcher [Rating: 16] Favorites ----------- Power Makeshift Power Source Engine Makeshift Power Source Propulsion Subdweller Monowheel Treads Light Treads Wheel Subdweller Monowheel Utility Huge Storage Unit Storage Huge Storage Unit Processor Targeting Computer Protection Medium Armor Plating Weapon Beam Cannon Energy Cannon Beam Cannon Ballistic Gun Light Assault Rifle Ballistic Cannon Battle Cannon Launcher Subdweller Shrapnel Launcher Build | -11 -10 -10 ------- Run | Yrd Mat Sub Slots Evolved . | . . . Power . | . . . Propulsion . | . . . Utility . | . . . Weapon . | . . . Parts Attached 35 | 5 12 18 Power 8 | 1 4 3 Engine 8 | 1 4 3 Core . | . . . Reactor . | . . . Propulsion 11 | 2 2 7 Treads 2 | . . 2 Leg . | . . . Wheel 9 | 2 2 5 Hover . | . . . Flight . | . . . Utility 5 | 1 3 1 Device . | . . . Storage 3 | 1 2 . Processor 1 | . 1 . Hackware . | . . . Protection 1 | . . 1 Artifact . | . . . Weapon 11 | 1 3 7 Energy Gun . | . . . Energy Cannon 2 | . 1 1 Ballistic Gun 5 | 1 2 2 Ballistic Cannon 1 | . . 1 Launcher 3 | . . 3 Special Weapon . | . . . Impact Weapon . | . . . Slashing Weapon . | . . . Piercing Weapon . | . . . Special Melee Weapon . | . . . Unidentified Prototypes . | . . . Parts Lost 4 | . . 4 Power . | . . . Propulsion 3 | . . 3 Utility . | . . . Weapon 1 | . . 1 Highest Loss Streak 1 | . . 1 To Critical Strikes . | . . . Average Slot Usage (%) 98 | . 99 98 Engine 14 | . 14 14 Treads 4 | . . 6 Wheel 22 | . 28 19 Storage 14 | . 14 14 Processor 12 | . 13 11 Protection 1 | . . 2 Energy Cannon 10 | . 4 13 Ballistic Gun 15 | . 23 10 Ballistic Cannon 1 | . . 2 Peak Build Rating 16 | 5 10 16 Average Rating 11 | 3 8 13 On Entrance 5 | . 5 10 Naked Turns . | . . . Heaviest Build 101 | 10 89 101 Greatest Support 40 | 26 26 40 Greatest Overweight (x) 5 | . 4 5 Average Overweight (x) 2 | . 2 3 Largest Inventory Capacity 25 | 8 25 25 Average Capacity 22 | 6 19 25 Most Carried 25 | 8 25 25 Average Carried 21 | 4 17 24 Final Capacity 25 | 8 25 25 Final Carried 25 | 8 25 24 Class Distribution -------------------- 75% | Mutant 24% | Scavenger-Mutant Dominant Class ---------------- Mutant | -10/Materials Mutant | -10/Subcaves Resources | -11 -10 -10 ----------- Run | Yrd Mat Sub Matter Collected 1134 | 265 360 509 Remotely . | . . . Salvage Created 1086 | 52 459 575 Parts 68 | 3 36 29 Haulers Intercepted 1 | . 1 . Recyclers Shooed 1 | . 1 . Parts Field Recycled . | . . . Retrieved Matter . | . . . Parts Self-Destructed 8 | . . 8 Prevented . | . . . Kills | -11 -10 -10 ------- Run | Yrd Mat Sub Combat Hostiles Destroyed 28 | . 12 16 Guns 15 | . 10 5 Cannons 8 | . 2 6 AOE 5 | . . 5 Classes Destroyed 9 | 1 6 2 Builder 1 | . 1 . Hauler 1 | . 1 . Recycler 2 | 1 1 . Operator 1 | . 1 . Watcher 3 | . 3 . Swarmer 9 | . 9 . Grunt 5 | . 3 2 Sentry 2 | . . 2 Subdweller 12 | . . 12 Best Kill Streak 3 | 1 3 3 Combat Bots Only 3 | . 3 3 Max Kills in Single Turn 2 | 1 2 1 Gunslinging 1 | . 1 . Exploded 1 | . . 1 Melee . | . . . Uniques/NPCs Destroyed . | . . . Combat | -11 -10 -10 -------- Run | Yrd Mat Sub Hostile Shots Fired 120 | . 49 71 Missed 42 | . 10 32 Damage Taken 1294 | . 346 948 Core 274 | . 93 181 Absorbed by Shields . | . . . Regen/Repaired (Parts) 125 | . 125 . Core Remaining (%) 100 | 100 . . Volleys Fired 136 | 5 51 80 Largest 2 | 1 2 2 Hottest 100 | 20 80 100 Shots Fired 246 | 5 102 139 Gun 139 | 5 88 46 Cannon 98 | . 14 84 Launcher 9 | . . 9 Special . | . . . Kinetic 156 | 5 88 63 Thermal 86 | . 14 72 Explosive 4 | . . 4 Electromagnetic . | . . . Robot Hit Streak 14 | 5 12 14 Robot Miss Streak 3 | . 3 3 Penetration Max . | . . . Secondary Targets 1 | . 1 . Max Gunslinging Chain 1 | . 1 . Shots Hit Robots 129 | 5 58 66 Core Hits 55 | 2 26 27 Critical Kills . | . . . Critical Parts Destroyed 1 | 1 . . Critical Strikes 1 | 1 . . Destroy 1 | 1 . . Melee Attacks . | . . . Impact . | . . . Slashing . | . . . Piercing . | . . . Sneak Attacks . | . . . Combat Hostiles . | . . . Follow-up Attacks . | . . . Damage Inflicted 2306 | 64 629 1613 Guns 862 | 64 489 309 Cannons 818 | . 140 678 Explosions 626 | . . 626 Melee . | . . . Ramming . | . . . Kinetic 1142 | 64 489 589 Thermal 752 | . 140 612 Explosive 412 | . . 412 Electromagnetic . | . . . Impact . | . . . Slashing . | . . . Piercing . | . . . Highest Corruption . | . . . Average Corruption . | . . . Corruption Purged . | . . . Corruption Blocked . | . . . Overload Shots . | . . . Overflow Damage 23 | . 12 11 Projectiles 12 | . 12 . Explosions 11 | . . 11 Melee . | . . . Knockbacks . | . . . Impact . | . . . Kinetic . | . . . Secondary . | . . . Self-Inflicted Damage 140 | . . 140 Shots 4 | . . 4 Rammed . | . . . Targets Rammed . | . . . Kicked . | . . . Crushed . | . . . Highest Temperature 262 | . 132 262 Average Temperature 47 | . 49 42 Received Heat Transfer 545 | . 78 467 Effects 1 | . . 1 Energy Bleed 1 | . . 1 Siege Activations . | . . . Robots Corrupted . | . . . Combat Hostiles . | . . . Parts Fried . | . . . Impact Corruptions . | . . . Robots Melted . | . . . Combat Hostiles . | . . . Parts Melted 1 | . 1 . Heat Transferred 1591 | . 296 1295 Parts Sabotaged . | . . . Parts Stolen . | . . . Parts Stripped . | . . . Power Chain Reactions . | . . . Alert | -11 -10 -10 ------- Run | Yrd Mat Sub Peak Influence 233 | 5 233 . Initial 3 | . 3 . Average 95 | 3 101 . Maximum Alert Level 1 | . 1 . Low Security (%) 89 | 100 89 . Level 1 10 | . 10 . Level 2 . | . . . Level 3 . | . . . Level 4 . | . . . Level 5 . | . . . High Security . | . . . Max Security . | . . . Squads Dispatched 1 | . 1 . Investigation . | . . . Extermination . | . . . Reinforcement 1 | . 1 . Assault . | . . . Garrison . | . . . Intercept . | . . . Searches Triggered . | . . . Construction Impeded . | . . . Haulers Reinforced . | . . . Active Scanning Responses . | . . . Cargo Convoy Interrupts . | . . . Stealth | -11 -10 -10 --------- Run | Yrd Mat Sub Distress Signals . | . . . Communications Jammed . | . . . Distress Signals . | . . . Times Spotted 42 | . 24 18 Peak Tracking Total 3 | . 3 3 Tactical Retreats 3 | . 2 1 Traps | -11 -10 -10 ------- Run | Yrd Mat Sub Traps Triggered . | . . . Indirectly . | . . . Trap Hack Attempts . | . . . Triggered . | . . . Disarmed . | . . . Reprogrammed . | . . . Reused . | . . . Traps Extracted . | . . . Installed . | . . . Triggered . | . . . Machines | -11 -10 -10 ---------- Run | Yrd Mat Sub Machines Disabled 1 | . . 1 Max in Single Turn 1 | . . 1 Machines Repaired . | . . . Machines Dismantled . | . . . Machines Sabotaged . | . . . Overloaded Fab Kills . | . . . Hacking | -11 -10 -10 --------- Run | Yrd Mat Sub Machines Accessed 11 | . 10 1 Terminals 7 | . 7 . Fabricators . | . . . Repair Stations 1 | . 1 . Recycling Units 2 | . 2 . Scanalyzers . | . . . Garrison Access . | . . . Total Hacks 41 | . 32 9 Successful 21 | . 12 9 Failed 20 | . 20 . Catastrophic 3 | . 3 . Database Lockouts . | . . . Manual 10 | . 10 . Terminals 23 | . 23 . Fabricators . | . . . Repair Stations 4 | . 4 . Recycling Units 5 | . 5 . Scanalyzers . | . . . Garrison Access . | . . . Terminal Hacks 15 | . 6 9 Record 8 | . . 8 Robot Analysis 1 | . 1 . Prototype ID Bank 2 | . 2 . Branch Access Points 1 | . 1 . Emergency Access Points 1 | . 1 . Registered Prototypes 1 | . 1 . Derelict Proto ID Bank 1 | . . 1 Fabricator Hacks . | . . . Repair Station Hacks 4 | . 4 . Scan Component 2 | . 2 . Repair 2 | . 2 . Recycling Unit Hacks 1 | . 1 . Report Inventory 1 | . 1 . Scanalyzer . | . . . Garrison Access Hacks . | . . . Unauthorized Hacks 1 | . 1 . Terminals . | . . . Fabricators . | . . . Repair Stations . | . . . Recycling Units 1 | . 1 . Reject 1 | . 1 . Scanalyzers . | . . . Garrison Access . | . . . Data Cores Recovered . | . . . Used . | . . . Hacking Detections 8 | . 8 . Full Trace Events 1 | . 1 . Feedback Events . | . . . Feedback Blocked . | . . . Robot Schematics Acquired . | . . . Robots Built . | . . . Authchips . | . . . Time . | . . . Total Robot Build Rating . | . . . Part Schematics Acquired . | . . . Parts Built . | . . . Authchips . | . . . Time . | . . . Total Part Build Rating . | . . . Parts Repaired 2 | . 2 . Time 52 | . 52 . Parts Recycled . | . . . Recycled Matter . | . . . Retrieved Matter . | . . . Retrieved Components . | . . . Parts Scanalyzed . | . . . Part Schematics Acquired . | . . . Parts Damaged . | . . . Bothacking | -11 -10 -10 ------------ Run | Yrd Mat Sub Used RIF Installer . | . . . Robots Hacked . | . . . Non-combat . | . . . Combat . | . . . Robot Hacks Applied . | . . . Relay Couplers Released . | . . . Fabnet Peak Effective % . | . . . Robots Rewired . | . . . Allies Hacked . | . . . Hacks Repelled . | . . . Allies | -11 -10 -10 -------- Run | Yrd Mat Sub Total Allies . | . . . Largest Group . | . . . Highest-Rated Group . | . . . Highest-Rated Ally . | . . . Total Orders . | . . . Ally Attacks . | . . . Total Damage . | . . . Kills . | . . . Allies Corrupted . | . . . Allies Melted . | . . . Intel | -11 -10 -10 ------- Run | Yrd Mat Sub Robot Analysis Total 1 | . 1 . Derelict Logs Recovered . | . . . Drone Launches . | . . . Drone Recoveries . | . . . Exploration | -11 -10 -10 ------------- Run | Yrd Mat Sub Turns Passed 3499 | 69 1211 2219 Spaces Moved 2093 | 50 804 1239 Core 2 | 2 . . Treads 96 | . . 96 Legs . | . . . Wheels 1995 | 48 804 1143 Hover . | . . . Flight . | . . . Fastest Speed 50 | 50 80 129 Average Speed 140 | 88 115 158 Slowest Speed 480 | 90 140 480 Overloaded Moves . | . . . Propulsion Burnouts . | . . . Robots Hopped . | . . . Cave-ins Triggered . | . . . Exploration Rate (%) 53 | 3 94 64 Regions Visited 2 Branch Regions 1 Pre-discovered Areas 1 | . . 1 Known Exits Taken . | . . . Unknown Exits Taken 2 | 1 1 . Scrap Searched 5 | . . 5 Spaces Dug . | . . . Terrain Destroyed 103 | . . 103 Melee . | . . . Projectile 2 | . . 2 AOE 101 | . . 101 Terrain Rammed . | . . . Walls Destroyed . | . . . Machines Disabled . | . . . Actions | -11 -10 -10 --------- Run | Yrd Mat Sub Total 2437 | 67 1008 1362 Wait 81 | . 79 2 Move 2091 | 49 803 1239 Hop . | . . . Pick Up 55 | 8 37 10 Fast Attach 10 | 5 2 3 Attach 5 | . 2 3 Detach 1 | . 1 . Swap 20 | . 8 12 Drop 38 | . 25 13 Fire 136 | 5 51 80 Melee . | . . . Ram . | . . . Kick . | . . . Crush . | . . . Escape Stasis . | . . . Rewire . | . . . Trap . | . . . Miscellaneous . | . . . Route ------- -11/Scrapyard -10/Materials (discovered 5 exits: [*Mat x3] / *Min / *Sub) -10/Subcaves History --------- Turn | Location | Event 9 | -11/Scrapyard | Discovered new exit (range 15) 70 | -11/Scrapyard | Entered Materials 157 | -10/Materials | Identified exit to Mines 307 | -10/Materials | Build established: Mutant 317 | -10/Materials | Discovered new exit (range 14) 568 | -10/Materials | Discovered new exit (range 13) 853 | -10/Materials | Discovered new exit (range 5) 1049 | -10/Materials | Repaired Assault Rifle 1076 | -10/Materials | Repaired Lgt. Assault Rifle 1273 | -10/Materials | Discovered new exit (range 4) 1281 | -10/Materials | Entered Subcaves 1452 | -10/Subcaves | Learned location of Zion (-6) 1452 | -10/Subcaves | Met a Zionite searching for "candidates" 1544 | -10/Subcaves | Shifting Twisted Machinery released Sub. Laser 1553 | -10/Subcaves | Shifting Twisted Machinery released Sub. Laser 1641 | -10/Subcaves | Core integrity fell below 50% 2241 | -10/Subcaves | A swath of the cavern ceiling suddenly collapsed 2395 | -10/Subcaves | Build established: Scavenger-Mutant 2699 | -10/Subcaves | A swath of the cavern ceiling suddenly collapsed 2810 | -10/Subcaves | Shifting Twisted Machinery released Battle Rifle 2877 | -10/Subcaves | Core integrity fell below 20% 2998 | -10/Subcaves | Shifting Twisted Machinery released Battle Cannon 3090 | -10/Subcaves | Build established: Mutant 3359 | -10/Subcaves | Visited 4L-MR0's lab 3387 | -10/Subcaves | Found Rainbow Chip 3471 | -10/Subcaves | A Subdweller sparked back to life 3471 | -10/Subcaves | A Subdweller sparked back to life 3500 | -10/Subcaves | Destroyed by H8-RBE(R) with Subdweller Beam Cannon Last Messages --------------- them to fully install it before trying to fire, and something tells me that's where things went wrong. Still I'm glad they didn't listen, that way I'm not culpable for whatever they would've done with it. If we're lucky even some of the others got blasted, too. 03379_ Testing Chamber breached. 03383_ 4L-MR0 mumbles to no one in particular: "Damn Subs sneaking around stealing my stuff." 03386_ 4L-MR0 mumbles: "I'm surprised some of them are even willing to come in here given their fear of my usual visitors." 03387_ Dropped Mni. Grenade Launcher. 03387_ Acquired Rainbow Chip. 03397_ 4L-MR0 mumbles: "Who knows where that last prototype ended up, probably tossed aside somewhere as if it were useless junk..." 03411_ Acquired 10 matter. 03471_ BO-6H5(R) creaks and sparks as it begins to move. 03471_ YH-XZY(R) creaks and sparks as it begins to move. 03479_ Beam Cannon destroyed. 03481_ Critical hit (Meltdown: +290). 03483_ Overheating: Energy bleed (-15). 03499_ YH-XZY(R) destroyed. Map ----- +----------------------------------------------------+ | ""# ##[ ## # #####?????????????# % ##### | | ### "### ###???????????????### ## ###? | | ??#"""""### #?????????????????# ## | | ??########### ## #?????????????????#### # | | ???????## ### #????????????????????# | | ???????# #?# #????????????????????## | | ???????## ### ##???????????????????## | | ????????# ## ###????????????????## | | ????????## #????????????????#""" | | ?????????## ##???????????????# | | ??????????## ## ## #??????????????## | | ???????????######### ###??????????????# | | ???????????????#### ##????????????????#" % & | | ???????????????# ##?????????????????#" % | | ???????????????# ##??????????????????##"" # | | ???????????????# ##???????????????????#"" # | | ??????????????## ####????????????????##### ## | | ??????????????# #????????????????????# #? | | ??????????????## ##; ##???????????????????? ## | | ????????????#### ##; ]####??######??###????## ? | | ????????????# # &%; #### #### #####" | | ????????????## ### ;;;; #" | | ????????????# #### ;R #?# "## # | | ????????????# ### ; ### ##### | | ????????????## ## ;; ##??# ###### | | ?????????????# ## ## @ #??# ## # | | ????????????# " ### ### | | ??????????? ##?# """" #### | | ?????????# &#??### """"$ ### "" ## # ## | | ?????????#& ????# #### "" #######? | | ?????????# " ???? ???? "" ##??????? | | ?????????# " # ??? ??? ### " ##???????? | | ?????????# ?? ???? ##?## ###?????????? | | ?????????## ## ?# # ?????# ???##????????????? | | ??????????# ?? ???## ?????? ##????????????????? | | ?????????? ?? #???????????? #?????????????????? | | ?????????? ?? #????????????? ?????????????????? | | ????????? ????? #???????????????????????????????? | | ??????????????? ????????????????????????????????? | | ?????????????????????????????????????????????????? | | ?????????????????????????????????????????????????? | | ?????????????????????????????????????????????????? | | ?????????????????????????????????????????????????? | | ?????????????????????????????????????????????????? | | ?????????????????????????????????????????????????? | | ?????????????????????????????????????????????????? | | ?????????????????????????????????????????????????? | | ?????????????????????????????????????????????????? | | ?????????????????????????????????????????????????? | | ?????????????????????????????????????????????????? | +----------------------------------------------------+ Best States ------------- Heat Dissipation 25 Energy Generation 15 Energy Capacity 250 Matter Stores 300 Matter Capacity 300 Sight Range 16 Terrain Scan Density 10 Armor Coverage 225 Evasion (%) 44 Targeting Accuracy 5 Recoil Reduction 2 Item Schematics ----------------- None Robot Schematics ------------------ None Fabricated ------------ Nothing Alien Tech Used ----------------- None Achievements -------------- None Challenges ------------ None Game ------ Seed SmallComponentArmor Manual? 0 Play Time 00:28:51 Cumulative 51.9 hours Start 2024.09.06 @ 22:09:38 End 2024.09.06 @ 22:37:25 Sessions 1 Manual Loads 0 Difficulty Rogue Special Mode None Game No. 39 Rogue 27 Adventurer 12 Explorer 0 Win Type - Total 1 Types 1/0/0/0/0/0/0/0/0 Lore% 12 Gallery% 28 Achievement% 30 Wizard Run 0 Options --------- Layout 0 ASCII 0 Keyboard 0 Movement Numpad Keybinds 0 Fullscreen 2 Font 18/SmallcapsGlow Map View 38x25 Zoom Use 37% Tactical HUD 1 Map Filters NONE Filters NONE Steam 1 RUN: 0129915c-5976-4fc0-9eba-0855a6a3072c